Cogmind - Beta 14 @@@ ROGUE MODE // 2024.08.14 @ 18:12:10 Player: H3-RMN Result: Destroyed by TL-YG7(R) with Subdweller Beam Cannon Performance ------------- Evolutions (0) 0 Regions Visited (3) 600 Robots Destroyed (53) 265 Value Destroyed (1359) 1359 Prototype IDs (3) 60 Alien Tech Used (0) 0 Bonus (49) 49 TOTAL SCORE: 2333 Bonus ------- Follower Combat Kills 85 Friendly Fire -36 Cogmind --------- Core Integrity 0/250 Matter 300/300 Energy 144/200 System Corruption 7% Temperature Warning (321) Movement Treading (250) Ox1 Location -10/Subcaves Parts ------- > --- POWER (1) -------- Subdweller Power Source > --- PROPULSION (2) --- Light Treads Spiked Treads > --- UTILITY (2) ------ High-capacity Storage Unit Makeshift Light Armor Plating > --- WEAPON (2) ------- Subdweller Beam Cannon > --- INVENTORY (20) --- Subdweller Power Source Light Treads Wheel Large Storage Unit Huge Storage Unit Faulty Experimental Sensor Array Transport Network Coupler Makeshift Light Armor Plating Scrap Shield Hacking Suite Subdweller Laser Subdweller Laser Subdweller Beam Cannon Battle Rifle Datajack Makeshift Axe Shrapnel Trap Peak State ------------ > --- POWER ------------ Subdweller Power Source > --- PROPULSION ------- Light Treads Spiked Treads > --- UTILITY ---------- High-capacity Storage Unit Makeshift Light Armor Plating > --- WEAPON ----------- Subdweller Beam Cannon Battle Cannon > --- INVENTORY -------- Subdweller Power Source Light Treads Wheel Large Storage Unit Huge Storage Unit Experimental Sensor Array Transport Network Coupler Makeshift Light Armor Plating Scrap Shield Hacking Suite Subdweller Laser Subdweller Laser Subdweller Beam Cannon Battle Rifle Datajack Makeshift Axe Shrapnel Trap [Rating: 18] Favorites ----------- Power Ion Engine Engine Ion Engine Propulsion Light Treads Treads Light Treads Utility Seismic Detector Device Seismic Detector Storage Large Storage Unit Protection Makeshift Light Armor Plating Weapon Assault Rifle Energy Gun Small Laser Energy Cannon Subdweller Beam Cannon Ballistic Gun Assault Rifle Ballistic Cannon Battle Cannon Launcher Grenade Launcher Build | -11 -10 -10 -10 ------- Run | Yrd Mat Min Sub Slots Evolved . | . . . . Power . | . . . . Propulsion . | . . . . Utility . | . . . . Weapon . | . . . . Parts Attached 47 | 7 15 7 18 Power 7 | 1 3 1 2 Engine 7 | 1 3 1 2 Core . | . . . . Reactor . | . . . . Propulsion 9 | 2 2 1 4 Treads 9 | 2 2 1 4 Leg . | . . . . Wheel . | . . . . Hover . | . . . . Flight . | . . . . Utility 8 | 2 1 3 2 Device 4 | 1 . 3 . Storage 3 | 1 1 . 1 Processor . | . . . . Hackware . | . . . . Protection 1 | . . . 1 Artifact . | . . . . Weapon 23 | 2 9 2 10 Energy Gun 4 | 1 2 . 1 Energy Cannon 1 | . . . 1 Ballistic Gun 10 | 1 4 1 4 Ballistic Cannon 2 | . . . 2 Launcher 6 | . 3 1 2 Special Weapon . | . . . . Impact Weapon . | . . . . Slashing Weapon . | . . . . Piercing Weapon . | . . . . Special Melee Weapon . | . . . . Unidentified Prototypes 1 | . . 1 . Parts Lost 14 | . 5 1 8 Power 2 | . . . 2 Propulsion 5 | . 2 1 2 Utility 1 | . . . 1 Weapon 6 | . 3 . 3 Highest Loss Streak 2 | . 2 1 2 To Critical Strikes . | . . . . Average Slot Usage (%) 99 | . 99 100 98 Engine 13 | . 14 14 13 Treads 27 | . 28 28 27 Device 13 | . 14 14 12 Storage 14 | . 14 14 14 Energy Gun 4 | . 6 . 3 Ballistic Gun 20 | . 20 24 14 Ballistic Cannon 1 | . . . 5 Peak Build Rating 18 | 7 8 16 18 Average Rating 9 | 5 7 8 12 On Entrance 6 | . 7 8 9 Naked Turns . | . . . . Heaviest Build 60 | 14 30 31 60 Greatest Support 40 | 40 40 40 40 Greatest Overweight (x) 1 | . . . 1 Average Overweight (x) . | . . . . Largest Inventory Capacity 20 | 8 15 15 20 Average Capacity 14 | 7 14 15 15 Most Carried 18 | 6 15 15 18 Average Carried 12 | 3 11 14 14 Final Capacity 20 | 8 15 15 20 Final Carried 18 | 6 15 14 18 Class Distribution -------------------- 52% | Mutant 47% | Scavenger-Mutant Dominant Class ---------------- Mutant | -10/Materials Scavenger-Mutant | -10/Mines Scavenger-Mutant | -10/Subcaves Resources | -11 -10 -10 -10 ----------- Run | Yrd Mat Min Sub Matter Collected 1621 | 303 553 201 564 Remotely . | . . . . Salvage Created 1690 | 122 920 285 363 Parts 113 | 7 70 14 22 Haulers Intercepted 2 | . 2 . . Recyclers Shooed 3 | 2 1 . . Parts Field Recycled . | . . . . Retrieved Matter . | . . . . Parts Self-Destructed 8 | . . . 8 Prevented . | . . . . Kills | -11 -10 -10 -10 ------- Run | Yrd Mat Min Sub Combat Hostiles Destroyed 42 | . 25 8 9 Guns 28 | . 17 6 5 Cannons 3 | . . . 3 AOE 11 | . 8 2 1 Classes Destroyed 10 | 2 6 1 1 Builder 2 | . 2 . . Tunneler 2 | 2 . . . Hauler 2 | . 2 . . Recycler 2 | 1 1 . . Operator 2 | . 2 . . Watcher 2 | . 2 . . Swarmer 10 | . 9 1 . Grunt 24 | . 16 6 2 Subdweller 7 | . . . 7 Assembled 1 | . . 1 . Best Kill Streak 8 | 2 8 2 2 Combat Bots Only 5 | . 5 2 2 Max Kills in Single Turn 3 | 1 3 1 1 Gunslinging . | . . . . Exploded 3 | . 3 1 1 Melee . | . . . . Uniques/NPCs Destroyed . | . . . . Combat | -11 -10 -10 -10 -------- Run | Yrd Mat Min Sub Hostile Shots Fired 178 | . 103 12 63 Missed 39 | . 23 4 12 Damage Taken 2174 | . 893 143 1138 Core 251 | . 84 . 167 Absorbed by Shields . | . . . . Core Remaining (%) 100 | 100 . . . Volleys Fired 180 | 11 89 19 61 Largest 2 | 2 2 2 2 Hottest 119 | 60 60 40 119 Shots Fired 344 | 22 171 37 114 Gun 280 | 22 165 34 59 Cannon 51 | . . . 51 Launcher 13 | . 6 3 4 Special . | . . . . Kinetic 255 | 11 128 34 82 Thermal 76 | 11 37 . 28 Explosive 13 | . 6 3 4 Electromagnetic . | . . . . Robot Hit Streak 22 | 5 13 8 22 Robot Miss Streak 5 | 2 5 2 3 Penetration Max . | . . . . Secondary Targets 2 | . 1 1 . Max Gunslinging Chain 1 | . 1 1 . Shots Hit Robots 247 | 17 119 25 86 Core Hits 108 | 4 65 13 26 Critical Kills . | . . . . Critical Parts Destroyed . | . . . . Critical Strikes . | . . . . Melee Attacks . | . . . . Impact . | . . . . Slashing . | . . . . Piercing . | . . . . Sneak Attacks . | . . . . Combat Hostiles . | . . . . Follow-up Attacks . | . . . . Damage Inflicted 4320 | 211 2007 431 1671 Guns 2378 | 211 1353 270 544 Cannons 854 | . . . 854 Explosions 1088 | . 654 161 273 Melee . | . . . . Ramming . | . . . . Kinetic 2364 | 122 1003 270 969 Thermal 868 | 89 350 . 429 Explosive 1088 | . 654 161 273 Electromagnetic . | . . . . Impact . | . . . . Slashing . | . . . . Piercing . | . . . . Highest Corruption 7 | . 2 7 7 Average Corruption 4 | . 2 6 7 Corruption Purged . | . . . . Corruption Blocked . | . . . . Effects 82 | . 25 28 29 Message Errors 24 | . 11 6 7 Matter Fused 23 | . 6 6 11 Heat Flow Errors 6 | . 1 3 2 Energy Discharges 10 | . 2 5 3 Parts Rejected 1 | . . . 1 Data Loss (minor) 6 | . 2 2 2 Data Loss (major) 3 | . 1 2 . Misfires 5 | . 1 1 3 Alerts 4 | . 1 3 . Overload Shots . | . . . . Overflow Damage 5 | . 5 . . Projectiles . | . . . . Explosions 5 | . 5 . . Melee . | . . . . Knockbacks 5 | . . . 5 Impact . | . . . . Kinetic 5 | . . . 5 Secondary . | . . . . Self-Inflicted Damage 152 | . 7 40 105 Shots 6 | . 1 2 3 Rammed . | . . . . Targets Rammed . | . . . . Kicked . | . . . . Crushed . | . . . . Highest Temperature 312 | . 104 186 312 Average Temperature 52 | . 19 74 130 Received Heat Transfer 1110 | . 450 57 603 Siege Activations . | . . . . Robots Corrupted . | . . . . Combat Hostiles . | . . . . Parts Fried . | . . . . Impact Corruptions . | . . . . Robots Melted . | . . . . Combat Hostiles . | . . . . Parts Melted 4 | . . 1 3 Heat Transferred 1556 | 200 800 . 556 Parts Sabotaged . | . . . . Parts Stolen . | . . . . Parts Stripped . | . . . . Power Chain Reactions . | . . . . Alert | -11 -10 -10 -10 ------- Run | Yrd Mat Min Sub Peak Influence 392 | 15 392 270 . Initial 152 | . 9 152 . Average 168 | 7 192 151 . Maximum Alert Level 1 | . 1 1 . Low Security (%) 55 | 100 45 69 . Level 1 44 | . 54 30 . Level 2 . | . . . . Level 3 . | . . . . Level 4 . | . . . . Level 5 . | . . . . High Security . | . . . . Max Security . | . . . . Squads Dispatched 6 | . 6 . . Investigation 3 | . 3 . . Extermination . | . . . . Reinforcement 3 | . 3 . . Assault . | . . . . Garrison . | . . . . Intercept . | . . . . Searches Triggered . | . . . . Construction Impeded . | . . . . Haulers Reinforced . | . . . . Active Scanning Responses . | . . . . Cargo Convoy Interrupts . | . . . . Stealth | -11 -10 -10 -10 --------- Run | Yrd Mat Min Sub Distress Signals 1 | . 1 . . Communications Jammed . | . . . . Distress Signals . | . . . . Times Spotted 59 | . 37 11 11 Peak Tracking Total 4 | . 4 3 2 Tactical Retreats 5 | . 2 2 1 Traps | -11 -10 -10 -10 ------- Run | Yrd Mat Min Sub Traps Triggered 1 | . 1 . . Indirectly . | . . . . Trap Hack Attempts . | . . . . Triggered . | . . . . Disarmed . | . . . . Reprogrammed . | . . . . Reused . | . . . . Traps Extracted . | . . . . Installed . | . . . . Triggered . | . . . . Most Traps Carried 1 | . . . 1 Machines | -11 -10 -10 -10 ---------- Run | Yrd Mat Min Sub Machines Disabled 2 | . 2 . . Max in Single Turn 1 | . 1 . . Machines Repaired . | . . . . Machines Dismantled . | . . . . Machines Sabotaged . | . . . . Overloaded Fab Kills . | . . . . Hacking | -11 -10 -10 -10 --------- Run | Yrd Mat Min Sub Machines Accessed 9 | . 9 . . Terminals 6 | . 6 . . Fabricators . | . . . . Repair Stations 1 | . 1 . . Recycling Units 2 | . 2 . . Scanalyzers . | . . . . Garrison Access . | . . . . Total Hacks 25 | . 25 . . Successful 10 | . 10 . . Failed 14 | . 14 . . Catastrophic 2 | . 2 . . Database Lockouts 1 | . 1 . . Manual 15 | . 15 . . Terminals 18 | . 18 . . Fabricators . | . . . . Repair Stations 4 | . 4 . . Recycling Units 3 | . 3 . . Scanalyzers . | . . . . Garrison Access . | . . . . Terminal Hacks 2 | . 2 . . Part Schematic 1 | . 1 . . Prototype ID Bank 1 | . 1 . . Fabricator Hacks . | . . . . Repair Station Hacks . | . . . . Recycling Unit Hacks 2 | . 2 . . Report Inventory 2 | . 2 . . Scanalyzer . | . . . . Garrison Access Hacks . | . . . . Unauthorized Hacks 6 | . 6 . . Terminals 5 | . 5 . . Skim 5 | . 5 . . Fabricators . | . . . . Repair Stations . | . . . . Recycling Units 1 | . 1 . . Tunnel 1 | . 1 . . Scanalyzers . | . . . . Garrison Access . | . . . . Data Cores Recovered . | . . . . Used . | . . . . Hacking Detections 8 | . 8 . . Full Trace Events 2 | . 2 . . Feedback Events . | . . . . Feedback Blocked . | . . . . Robot Schematics Acquired . | . . . . Robots Built . | . . . . Authchips . | . . . . Time . | . . . . Total Robot Build Rating . | . . . . Part Schematics Acquired 1 | . 1 . . Parts Built . | . . . . Authchips . | . . . . Time . | . . . . Total Part Build Rating . | . . . . Parts Repaired . | . . . . Time . | . . . . Parts Recycled . | . . . . Recycled Matter . | . . . . Retrieved Matter . | . . . . Retrieved Components . | . . . . Parts Scanalyzed . | . . . . Part Schematics Acquired . | . . . . Parts Damaged . | . . . . Bothacking | -11 -10 -10 -10 ------------ Run | Yrd Mat Min Sub Used RIF Installer . | . . . . Robots Hacked . | . . . . Non-combat . | . . . . Combat . | . . . . Robot Hacks Applied . | . . . . Relay Couplers Released . | . . . . Fabnet Peak Effective % . | . . . . Robots Rewired . | . . . . Allies Hacked . | . . . . Hacks Repelled . | . . . . Allies | -11 -10 -10 -10 -------- Run | Yrd Mat Min Sub Total Allies 3 | . . 3 . Largest Group 3 | . . 3 1 Highest-Rated Group 40 | . . 40 16 Highest-Rated Ally 16 | . . 16 16 Total Orders . | . . . . Ally Attacks 26 | . . 21 5 Total Damage 230 | . . 230 . Kills 4 | . . 4 . Allies Corrupted . | . . . . Allies Melted . | . . . . Intel | -11 -10 -10 -10 ------- Run | Yrd Mat Min Sub Robot Analysis Total . | . . . . Derelict Logs Recovered . | . . . . Drone Launches . | . . . . Drone Recoveries . | . . . . Exploration | -11 -10 -10 -10 ------------- Run | Yrd Mat Min Sub Turns Passed 3943 | 182 1953 932 876 Spaces Moved 1685 | 120 882 315 368 Core 54 | 54 . . . Treads 1631 | 66 882 315 368 Legs . | . . . . Wheels . | . . . . Hover . | . . . . Flight . | . . . . Fastest Speed 50 | 50 160 160 160 Average Speed 156 | 110 160 160 161 Slowest Speed 250 | 160 160 160 250 Overloaded Moves . | . . . . Propulsion Burnouts . | . . . . Robots Hopped . | . . . . Cave-ins Triggered . | . . . . Exploration Rate (%) 46 | 4 96 57 29 Regions Visited 3 Branch Regions 2 Pre-discovered Areas 3 | . 1 1 1 Known Exits Taken . | . . . . Unknown Exits Taken 3 | 1 1 1 . Scrap Searched 7 | . . 1 6 Spaces Dug 25 | . 25 . . Terrain Destroyed 85 | . 42 21 22 Melee . | . . . . Projectile 1 | . . . 1 AOE 84 | . 42 21 21 Terrain Rammed . | . . . . Walls Destroyed . | . . . . Machines Disabled . | . . . . Actions | -11 -10 -10 -10 --------- Run | Yrd Mat Min Sub Total 2659 | 144 1262 710 543 Wait 690 | 1 249 366 74 Move 1682 | 119 881 314 368 Hop . | . . . . Pick Up 38 | 6 19 1 12 Fast Attach 14 | 7 1 . 6 Attach 11 | . 5 1 5 Detach 2 | . . . 2 Swap 22 | . 9 6 7 Drop 20 | . 9 3 8 Fire 180 | 11 89 19 61 Melee . | . . . . Ram . | . . . . Kick . | . . . . Crush . | . . . . Escape Stasis . | . . . . Rewire . | . . . . Trap . | . . . . Miscellaneous . | . . . . Route ------- -11/Scrapyard -10/Materials (discovered 3 exits: [*Mat x2] / [*Min]) -10/Mines (discovered 2 exits: [*Mat] / [*Sub]) -10/Subcaves (discovered 1 exit: [*Mat]) History --------- Turn | Location | Event 19 | -11/Scrapyard | Discovered new exit (range 16) 183 | -11/Scrapyard | Entered Materials 317 | -10/Materials | Build established: Mutant 876 | -10/Materials | Discovered new exit (range 8) 1411 | -10/Materials | Discovered new exit (range 8) 1870 | -10/Materials | Central database locked down 1875 | -10/Materials | Discovered new exit (range 10) 2085 | -10/Materials | Build established: Scavenger-Mutant 2136 | -10/Materials | Entered Mines 2140 | -10/Mines | Assisted by bots powering up and referring to "LRC-V3" 2178 | -10/Mines | Found a damaged Exp. Sensor Array with a note attached 2182 | -10/Mines | Found Prototype Device 2183 | -10/Mines | Identified Exp. Sensor Array 2379 | -10/Mines | Excavation squad dispatched 2379 | -10/Mines | A large section of the Mines collapsed 2629 | -10/Mines | Excavation squad dispatched 2838 | -10/Mines | Discovered new exit (range 6) 2869 | -10/Mines | Discovered new exit (range 14) 2874 | -10/Mines | Learned location of Storage (-9) 3068 | -10/Mines | Entered Subcaves 3068 | -10/Subcaves | Accompanied by 1 ally 3074 | -10/Subcaves | Learned location of Zion (-7) 3074 | -10/Subcaves | Met a Zionite searching for "candidates" 3076 | -10/Subcaves | Ambushed by Subdwellers from Twisted Machinery 3123 | -10/Subcaves | Discovered new exit (range 14) 3127 | -10/Subcaves | Lost 3 allies 3366 | -10/Subcaves | Core integrity fell below 50% 3537 | -10/Subcaves | Shifting Twisted Machinery released Battle Rifle 3691 | -10/Subcaves | A swath of the cavern ceiling suddenly collapsed 3852 | -10/Subcaves | Core integrity fell below 20% 3909 | -10/Subcaves | Disturbed a concealed Subdweller 3944 | -10/Subcaves | Destroyed by TL-YG7(R) with Subdweller Beam Cannon Last Messages --------------- 03898_ Found Sub. Monowheel. 03898_ Found Mak. Light Armor Plating. 03898_ Found 35 Matter. 03903_ Acquired Mak. Light Armor Plating. 03907_ Searching scrap... 03907_ Found Mak. Spear. 03907_ Found Mak. Light Armor Plating. 03907_ Found 35 Matter. 03909_ TL-YG7(R) angrily emerges from the Twisted Machinery. 03910_ Acquired 5 matter. 03912_ TL-YG7(R) knocked back. 03913_ Acquired 5 matter. 03923_ TL-YG7(R) knocked back. 03924_ Acquired 5 matter. 03933_ TL-YG7(R) knocked back. 03934_ Acquired 5 matter. 03936_ Critical hit (Meltdown: +300). 03937_ Acquired 5 matter. 03942_ Battle Cannon destroyed. Map ----- +----------------------------------------------------+ | | | | | | | | | | | | | | | | | ?????????????????????????????????????????????????? | | ?????????????????????????????????????????????????? | | ?????????????????????????????????????????????????? | | ?????????????????????????????????????????????????? | | ?????????????????????????????????????????????????? | | ?????????????????????????????????????????????????? | | ?????????????????????????????????????????????????? | | ?????????????????????????????????????????????????? | | ?????????????????????????????????????????????????? | | ?????????????????????????????????????????????????? | | ?????????????????????????????????????????????????? | | ?????????????????????????????????????????????????? | | ?????????????????????????????????????????????????? | | ?????????????????????????????????????????????????? | | ?????????????????????#########???????????????????? | | ????????????????????## & #????????????####???? | | ????????????????????# ### ###?????###### ##??? | | ?????????????????? ?# @ #|% ####### # #??? | | ??????????????? ???#